fUSD/lending_fUSD_20260627
["ID","MTS","AMOUNT","RATE_DAILY","PERIOD"]
[426535056,1782558638000,-500.0,0.00014444,2]
[426535066,1782558638000,-500.0,0.00014444,2]
[426535068,1782558638000,-500.0,0.00014444,2]
[426535120,1782558639000,-2240.84477464,0.00014521,2]
[426535131,1782558639000,-11027.91694312,0.00014733,2]
[426535128,1782558639000,-17086.60346335,0.00014678,2]
[426535130,1782558639000,-2240.84477464,0.00014711,2]
[426535121,1782558639000,-178.31452087,0.0001456,2]
[426535125,1782558639000,-1842.05934323,0.00014628,2]
[426535126,1782558639000,-176.38123636,0.00014628,2]
[426535122,1782558639000,-11027.91694312,0.00014567,2]
[426535129,1782558639000,-921.46,0.00014698,2]
[426535127,1782558639000,-11027.91694312,0.00014678,2]
[426535135,1782558639000,-17086.60346335,0.00014789,2]
[426535144,1782558639000,-199.72169564,0.000149,2]
[426535132,1782558639000,-17086.60346335,0.00014733,2]
[426535133,1782558639000,-178.31452087,0.00014764,2]
[426535138,1782558639000,-17187.66858136,0.000149,3]
[426535136,1782558639000,-11027.91694312,0.00014844,2]
[426535142,1782558639000,-2240.84477464,0.000149,2]
[426535139,1782558639000,-11027.91694312,0.000149,2]
[426535140,1782558639000,-17086.60346335,0.000149,2]
[426535145,1782558639000,-151.0,0.000149,2]
[426535141,1782558639000,-511.28190816,0.000149,2]
[426535137,1782558639000,-17086.60346335,0.00014844,2]
[426535123,1782558639000,-204.00656,0.00014602,2]
[426535134,1782558639000,-11027.91694312,0.00014789,2]
[426535124,1782558639000,-11027.91694312,0.00014622,2]
[426535093,1782558639000,-500.0,0.00014444,2]
[426535118,1782558639000,-7462.46058358,0.000145,2]
[426535092,1782558639000,-500.0,0.00014444,2]
[426535143,1782558639000,-649.59,0.000149,2]
[426535094,1782558639000,-500.0,0.00014444,2]
[426535095,1782558639000,-500.0,0.00014444,2]
[426535097,1782558639000,-500.0,0.00014444,2]
[426535096,1782558639000,-500.0,0.00014444,2]
[426535099,1782558639000,-500.0,0.00014444,2]
[426535101,1782558639000,-500.0,0.00014444,2]
[426535102,1782558639000,-500.0,0.00014444,2]
[426535103,1782558639000,-500.0,0.00014444,2]
[426535107,1782558639000,-500.0,0.00014444,2]
[426535106,1782558639000,-500.0,0.00014444,2]
[426535111,1782558639000,-500.0,0.00014444,2]
[426535112,1782558639000,-500.0,0.00014444,2]
[426535109,1782558639000,-500.0,0.00014444,2]
[426535104,1782558639000,-500.0,0.00014444,2]
[426535113,1782558639000,-500.0,0.00014444,2]
[426535110,1782558639000,-500.0,0.00014444,2]
[426535108,1782558639000,-500.0,0.00014444,2]
[426535114,1782558639000,-500.0,0.00014444,2]
[426535116,1782558639000,-11027.91694312,0.00014456,2]
[426535115,1782558639000,-1231674.7317,0.00014445,2]
[426535119,1782558639000,-11027.91694312,0.00014511,2]
[426535117,1782558639000,-208.85807773,0.00014493,2]
[426535147,1782558639000,-151.0,0.000149,2]
[426535105,1782558639000,-500.0,0.00014444,2]
[426535151,1782558639000,-49715.0,0.00014959,2]
[426535186,1782558639000,-500.0,0.00014999,2]
[426535171,1782558639000,-500.0,0.00014999,2]
[426535175,1782558639000,-500.0,0.00014999,2]
[426535180,1782558639000,-500.0,0.00014999,2]
[426535187,1782558639000,-500.0,0.00014999,2]
[426535191,1782558639000,-500.0,0.00014999,2]
[426535195,1782558639000,-500.0,0.00014999,2]
[426535194,1782558639000,-500.0,0.00014999,2]
[426535200,1782558639000,-500.0,0.00014999,2]
[426535198,1782558639000,-500.0,0.00014999,2]
[426535197,1782558639000,-500.0,0.00014999,2]
[426535189,1782558639000,-500.0,0.00014999,2]
[426535199,1782558639000,-455.29496546,0.00014999,2]
[426535196,1782558639000,-500.0,0.00014999,2]
[426535188,1782558639000,-500.0,0.00014999,2]
[426535201,1782558639000,-500.0,0.00014999,2]
[426535205,1782558639000,-524.51883323,0.00014999,2]
[426535203,1782558639000,-500.0,0.00014999,2]
[426535206,1782558639000,-500.0,0.00014999,2]
[426535204,1782558639000,-500.0,0.00014999,2]
[426535207,1782558639000,-500.0,0.00014999,2]
[426535202,1782558639000,-500.0,0.00014999,2]
[426535208,1782558639000,-500.0,0.00014999,2]
[426535184,1782558639000,-500.0,0.00014999,2]
[426535172,1782558639000,-500.0,0.00014999,2]
[426535193,1782558639000,-500.0,0.00014999,2]
[426535173,1782558639000,-500.0,0.00014999,2]
[426535174,1782558639000,-500.0,0.00014999,2]
[426535148,1782558639000,-1842.05934323,0.000149,2]
[426535156,1782558639000,-482.09353528,0.0001499,2]
[426535150,1782558639000,-150.0,0.00014959,2]
[426535155,1782558639000,-482.09353528,0.0001499,2]
[426535153,1782558639000,-178.31452087,0.00014968,2]
[426535154,1782558639000,-167.98,0.00014985,2]
[426535152,1782558639000,-49618.0,0.00014959,2]
[426535146,1782558639000,-151.0,0.000149,2]
[426535149,1782558639000,-176.38123636,0.000149,2]
[426535159,1782558639000,-500.0,0.00014999,2]
[426535164,1782558639000,-252.56,0.00014999,2]
[426535157,1782558639000,-1072.57038613,0.00014999,5]
[426535160,1782558639000,-500.0,0.00014999,2]
[426535176,1782558639000,-506.99993731,0.00014999,2]
[426535158,1782558639000,-202.12342155,0.00014999,5]
[426535182,1782558639000,-500.0,0.00014999,2]
[426535163,1782558639000,-500.0,0.00014999,2]
[426535162,1782558639000,-500.0,0.00014999,2]
[426535178,1782558639000,-629.42950447,0.00014999,2]
[426535165,1782558639000,-231.84853459,0.00014999,2]
[426535161,1782558639000,-500.0,0.00014999,2]
[426535170,1782558639000,-500.0,0.00014999,2]
[426535169,1782558639000,-500.0,0.00014999,2]
[426535167,1782558639000,-500.0,0.00014999,2]
[426535213,1782558640000,-500.0,0.00014999,2]
[426535211,1782558640000,-500.0,0.00014999,2]
[426535209,1782558640000,-500.0,0.00014999,2]
[426535212,1782558640000,-509.19452357,0.00014999,2]
[426535210,1782558640000,-500.0,0.00014999,2]
[426535214,1782558640000,-500.0,0.00014999,2]
[426535223,1782558640000,-6685356.82537483,0.00015,2]
[426535217,1782558640000,-321.4169976,0.00014999,2]
[426535216,1782558640000,-500.0,0.00014999,2]
[426535215,1782558640000,-500.0,0.00014999,2]
[426535224,1782558640000,-57766.74640982,0.00015,2]
[426535220,1782558640000,-300.0,0.00014999,2]
[426535219,1782558640000,-666.0,0.00014999,2]
[426535218,1782558640000,-300.0,0.00014999,2]
[426535221,1782558640000,-7014244.90637912,0.00015,2]
[426535222,1782558640000,-257.77,0.00015,2]
[426535229,1782558642000,-2988.96777335,0.00011307,2]
[426535227,1782558642000,-955.45254999,0.00011307,2]
[426535228,1782558642000,-614.54,0.00011307,2]
[426535230,1782558643000,-430.00745001,0.00011307,2]
[426535269,1782558646000,-1190.33077335,0.00015,2]
[426535268,1782558646000,-11.03222665,0.00011307,2]
[426535270,1782558646000,-460.21076559,0.00015,2]
[426535271,1782558671000,500.0,0.00037492,120]
[426535272,1782558761000,228.7345136,0.00010384,7]
[426535273,1782558867000,1217.07,0.00037501,120]
[426535274,1782559220000,530.71030043,0.00037405,120]
[426535277,1782559498000,500.0,0.00037406,120]
[426535276,1782559498000,500.0,0.00037406,120]
[426535280,1782559499000,500.0,0.00037406,120]
[426535279,1782559499000,500.0,0.00037406,120]
[426535278,1782559499000,500.0,0.00037406,120]
[426535281,1782559500000,500.0,0.00037406,120]
[426535282,1782559500000,500.0,0.00037406,120]
[426535283,1782559728000,584.73237079,0.00037407,120]
[426535303,1782559831000,-905.98231353,0.00011728,2]
[426535306,1782559831000,-196.33030481,0.00011872,2]
[426535288,1782559831000,-244.5148546,0.00011515,2]
[426535285,1782559831000,-117.85191704,0.00010884,2]
[426535286,1782559831000,-96.94666279,0.00010884,2]
[426535289,1782559831000,-74.75508926,0.00011532,2]
[426535287,1782559831000,-159.53339335,0.0001111,2]
[426535290,1782559831000,-773.1519251,0.00011532,2]
[426535292,1782559831000,-224.14259578,0.00011569,2]
[426535294,1782559831000,-4499.2,0.00011609,2]
[426535293,1782559831000,-150.0,0.0001157,2]
[426535284,1782559831000,-153.32125841,0.00010809,2]
[426535300,1782559831000,-38.0796667,0.00011728,2]
[426535297,1782559831000,-696.35811717,0.00011669,2]
[426535296,1782559831000,-608.65188283,0.00011669,2]
[426535295,1782559831000,-269.73336981,0.00011619,2]
[426535291,1782559831000,-2106.62298564,0.00011532,2]
[426535299,1782559831000,-180.38061514,0.00011719,2]
[426535301,1782559831000,-328.07007432,0.00011728,2]
[426535302,1782559831000,-530.57794545,0.00011728,2]
[426535305,1782559831000,-206.25,0.00011825,2]
[426535298,1782559831000,-200.0,0.00011684,2]
[426535304,1782559831000,-166.66,0.00011819,2]
[426535342,1782559832000,-152.0,0.00012369,2]
[426535347,1782559832000,-150.0,0.00012369,2]
[426535350,1782559832000,-150.0,0.00012369,2]
[426535344,1782559832000,-150.0,0.00012369,2]
[426535352,1782559832000,-150.0,0.00012369,2]
[426535341,1782559832000,-151.0,0.00012369,2]
[426535348,1782559832000,-151.0,0.00012369,2]
[426535349,1782559832000,-151.0,0.00012369,2]
[426535346,1782559832000,-151.0,0.00012369,2]
[426535340,1782559832000,-151.0,0.00012369,2]
[426535345,1782559832000,-151.0,0.00012369,2]
[426535343,1782559832000,-151.0,0.00012369,2]
[426535351,1782559832000,-150.0,0.00012369,2]
[426535362,1782559832000,-184.06664774,0.00012684,2]
[426535353,1782559832000,-55.58680449,0.00012369,2]
[426535355,1782559832000,-180.38061513,0.00012424,2]
[426535365,1782559832000,-87.03644928,0.00012726,2]
[426535364,1782559832000,-162.96355072,0.00012726,2]
[426535357,1782559832000,-166.66,0.00012566,2]
[426535356,1782559832000,-157.39,0.00012451,2]
[426535358,1782559832000,-150.0,0.00012571,2]
[426535363,1782559832000,-195.7,0.00012699,2]
[426535359,1782559832000,-1802.71,0.00012608,2]
[426535335,1782559832000,-151.0,0.00012369,2]
[426535360,1782559832000,-2244.21648207,0.00012684,2]
[426535361,1782559832000,-247.45351793,0.00012684,2]
[426535371,1782559832000,-180.38061513,0.00013128,2]
[426535375,1782559832000,-2213.67945347,0.00013136,2]
[426535354,1782559832000,-94.41319551,0.00012369,2]
[426535336,1782559832000,-151.0,0.00012369,2]
[426535327,1782559832000,-208.22616717,0.00012339,2]
[426535331,1782559832000,-208.22616717,0.00012339,2]
[426535369,1782559832000,-492.09391114,0.00012901,2]
[426535314,1782559832000,-150.0,0.0001191,2]
[426535307,1782559832000,-3.66969519,0.00011872,2]
[426535313,1782559832000,-150.0,0.0001191,2]
[426535308,1782559832000,-150.0,0.0001191,2]
[426535311,1782559832000,-152.70737994,0.0001191,2]
[426535310,1782559832000,-150.0,0.0001191,2]
[426535312,1782559832000,-150.63149704,0.0001191,2]
[426535309,1782559832000,-150.0,0.0001191,2]
[426535315,1782559832000,-150.0,0.0001191,2]
[426535317,1782559832000,-368.58,0.00011987,2]
[426535318,1782559832000,-466.75,0.0001199,2]
[426535320,1782559832000,-1802.71,0.00012021,2]
[426535319,1782559832000,-168.66,0.00012014,2]
[426535316,1782559832000,-1000.0,0.00011966,2]
[426535323,1782559832000,-1802.71,0.00012315,2]
[426535325,1782559832000,-160.72828142,0.00012317,2]
[426535324,1782559832000,-5.93171858,0.00012317,2]
[426535322,1782559832000,-203.39689881,0.00012221,2]
[426535321,1782559832000,-166.66,0.00012068,2]
[426535337,1782559832000,-151.0,0.00012369,2]
[426535332,1782559832000,-150.0,0.00012369,2]
[426535326,1782559832000,-165.59,0.00012329,2]
[426535329,1782559832000,-208.22616717,0.00012339,2]
[426535328,1782559832000,-208.22616717,0.00012339,2]
[426535338,1782559832000,-151.0,0.00012369,2]
[426535339,1782559832000,-150.0,0.00012369,2]
[426535330,1782559832000,-208.22616717,0.00012339,2]
[426535333,1782559832000,-184.06664774,0.00012369,2]
[426535334,1782559832000,-152.0,0.00012369,2]
[426535368,1782559832000,-632.60880899,0.00012901,2]
[426535382,1782559832000,-214.97470564,0.00013136,2]
[426535373,1782559832000,-737.35583262,0.00013136,2]
[426535416,1782559832000,-500.0,0.00013235,2]
[426535413,1782559832000,-236.04928457,0.00013235,2]
[426535414,1782559832000,-500.0,0.00013235,2]
[426535412,1782559832000,-465.33554317,0.00013235,2]
[426535408,1782559832000,-225.82231411,0.00013235,2]
[426535405,1782559832000,-44874.46797039,0.00013228,2]
[426535407,1782559832000,-150.0,0.00013233,2]
[426535406,1782559832000,-179.86777098,0.00013228,2]
[426535410,1782559832000,-500.0,0.00013235,2]
[426535409,1782559832000,-500.0,0.00013235,2]
[426535411,1782559832000,-408.04190902,0.00013235,2]
[426535417,1782559832000,-501.10193794,0.00013235,2]
[426535420,1782559832000,-500.0,0.00013235,2]
[426535415,1782559832000,-500.0,0.00013235,2]
[426535418,1782559832000,-500.0,0.00013235,2]
[426535423,1782559832000,-500.0,0.00013235,2]
[426535419,1782559832000,-500.0,0.00013235,2]
[426535428,1782559832000,-500.0,0.00013235,2]
[426535424,1782559832000,-500.0,0.00013235,2]
[426535421,1782559832000,-500.0,0.00013235,2]
[426535422,1782559832000,-500.0,0.00013235,2]
[426535425,1782559832000,-500.0,0.00013235,2]
[426535426,1782559832000,-500.0,0.00013235,2]
[426535427,1782559832000,-500.0,0.00013235,2]
[426535431,1782559832000,-362.43283119,0.00013235,2]
[426535430,1782559832000,-500.0,0.00013235,2]
[426535432,1782559832000,-500.0,0.00013235,2]
[426535372,1782559832000,-257.73080109,0.00013136,2]
[426535429,1782559832000,-500.0,0.00013235,2]
[426535404,1782559832000,-152.0,0.00013169,2]
[426535403,1782559832000,-153.0,0.00013169,2]
[426535398,1782559832000,-322.02167075,0.00013138,2]
[426535376,1782559832000,-829.98709775,0.00013136,2]
[426535377,1782559832000,-2891.54302779,0.00013136,2]
[426535366,1782559832000,-166.66,0.00012815,2]
[426535367,1782559832000,-678.00727987,0.00012901,2]
[426535370,1782559832000,-166.66,0.00013063,2]
[426535374,1782559832000,-13096.13658728,0.00013136,2]
[426535379,1782559832000,-152.0,0.00013136,2]
[426535389,1782559832000,-152.0,0.00013138,2]
[426535390,1782559832000,-214.97470564,0.00013138,2]
[426535380,1782559832000,-152.0,0.00013136,2]
[426535387,1782559832000,-152.0,0.00013138,2]
[426535381,1782559832000,-152.0,0.00013136,2]
[426535400,1782559832000,-151.0,0.00013169,2]
[426535388,1782559832000,-152.0,0.00013138,2]
[426535384,1782559832000,-152.0,0.00013136,2]
[426535433,1782559832000,-500.0,0.00013235,2]
[426535386,1782559832000,-152.0,0.00013138,2]
[426535402,1782559832000,-150.0,0.00013169,2]
[426535401,1782559832000,-151.0,0.00013169,2]
[426535378,1782559832000,-152.0,0.00013136,2]
[426535397,1782559832000,-2826.55852552,0.00013138,2]
[426535396,1782559832000,-330.95186067,0.00013138,2]
[426535392,1782559832000,-90.60996532,0.00013138,2]
[426535399,1782559832000,-151.0,0.00013169,2]
[426535393,1782559832000,-61.39003468,0.00013138,2]
[426535395,1782559832000,-5239.50803933,0.00013138,2]
[426535391,1782559832000,-152.0,0.00013138,2]
[426535383,1782559832000,-152.0,0.00013136,2]
[426535385,1782559832000,-2500.0,0.00013136,2]
[426535394,1782559832000,-244.64980376,0.00013138,2]
[426535437,1782559833000,-500.0,0.00013235,2]
[426535441,1782559833000,-499.99999999,0.00013235,2]
[426535442,1782559833000,-500.0,0.00013235,2]
[426535435,1782559833000,-500.0,0.00013235,2]
[426535436,1782559833000,-500.0,0.00013235,2]
[426535434,1782559833000,-500.0,0.00013235,2]
[426535439,1782559833000,-500.0,0.00013235,2]
[426535446,1782559833000,-8322.13317241,0.00013236,2]
[426535440,1782559833000,-500.0,0.00013235,2]
[426535447,1782559833000,-1602.42724703,0.00013236,2]
[426535445,1782559833000,-33906.4755127,0.00013236,2]
[426535438,1782559833000,-500.0,0.00013235,2]
[426535444,1782559833000,-473.49363739,0.00013235,2]
[426535443,1782559833000,-500.0,0.00013235,2]
[426535448,1782559833000,-292.91733824,0.00013236,2]
[426535459,1782559838000,-271.81519956,0.00011665,2]
[426535458,1782559838000,-343.48,0.00010554,2]
[426535461,1782559838000,-228.32519956,0.00013128,2]
[426535460,1782559838000,-71.66480044,0.00011665,2]
[426535463,1782559838000,-1148.53642385,0.00013128,2]
[426535464,1782559838000,-5677.025558,0.00013128,2]
[426535465,1782559838000,-4967.83744476,0.00013128,2]
[426535462,1782559838000,-9410.86526463,0.00013128,2]
[426535466,1782559838000,-1005.31361793,0.00013128,2]
[426535481,1782559840000,-1308.81645654,0.00013128,2]
[426535482,1782559840000,-908.33011734,0.00013128,2]
[426535483,1782559840000,-808149.70581355,0.00013128,2]
[426535489,1782559842000,-1370.52685329,0.00013128,2]
[426535488,1782559842000,-1132.9632,0.00013128,2]
[426535487,1782559842000,-342.82,0.00013128,2]
[426535486,1782559842000,-2147.57457912,0.00013128,2]
[426535490,1782559842000,-5650.13359218,0.00013128,2]
[426535493,1782559843000,-11120.75263695,0.00013128,2]
[426535494,1782559843000,-343.10411232,0.00013128,2]
[426535491,1782559843000,-982.07925712,0.00013128,2]
[426535492,1782559843000,-1708.24595,0.00013128,2]
[426535497,1782559846000,-55699.78897516,0.00013128,2]
[426535498,1782559846000,-1178.2322036,0.00013128,2]
[426535499,1782560710000,150.0,0.00011319,120]
[426535500,1782560841000,50000.0,0.00037425,120]
[426535515,1782561031000,-485.4185,0.00010835,2]
[426535568,1782561032000,-150.0,0.00011638,2]
[426535567,1782561032000,-1315.66,0.00011635,2]
[426535562,1782561032000,-160.0,0.00011376,2]
[426535564,1782561032000,-150.0,0.00011478,2]
[426535563,1782561032000,-187.66,0.00011422,2]
[426535566,1782561032000,-934.5,0.00011603,2]
[426535565,1782561032000,-166.66,0.00011493,2]
[426535560,1782561032000,-934.5,0.0001132,2]
[426535561,1782561032000,-158.00915736,0.0001135,2]
[426535559,1782561032000,-6.69457432,0.00011319,2]
[426535554,1782561032000,-1000.0,0.00011267,2]
[426535553,1782561032000,-846.54,0.000112,2]
[426535551,1782561032000,-1852.42,0.00011147,2]
[426535556,1782561032000,-1245.83,0.00011273,2]
[426535558,1782561032000,-143.30542568,0.00011319,2]
[426535552,1782561032000,-150.0,0.00011159,2]
[426535550,1782561032000,-500.0,0.0001114,2]
[426535557,1782561032000,-163.08,0.00011316,2]
[426535549,1782561032000,-2280.21260736,0.00011064,2]
[426535547,1782561032000,-150.0,0.00011051,2]
[426535545,1782561032000,-150.0,0.00010949,2]
[426535543,1782561032000,-150.0,0.00010942,2]
[426535540,1782561032000,-258.66196696,0.00010835,2]
[426535538,1782561032000,-824.83,0.00010835,2]
[426535569,1782561032000,-150.0,0.00011638,2]
[426535555,1782561032000,-150.0,0.00011267,2]
[426535570,1782561032000,-150.0,0.00011638,2]
[426535596,1782561032000,-152.0,0.00011864,2]
[426535572,1782561032000,-21.50844921,0.00011638,2]
[426535571,1782561032000,-128.49155079,0.00011638,2]
[426535591,1782561032000,-492.41777302,0.00011864,2]
[426535598,1782561032000,-152.0,0.00011864,2]
[426535593,1782561032000,-40016.11934999,0.00011864,2]
[426535592,1782561032000,-323.93990001,0.00011864,2]
[426535594,1782561032000,-152.0,0.00011864,2]
[426535595,1782561032000,-152.0,0.00011864,2]
[426535590,1782561032000,-552.0,0.00011864,2]
[426535589,1782561032000,-5533.0,0.00011864,2]
[426535586,1782561032000,-150.0,0.00011863,2]
[426535587,1782561032000,-989.85991462,0.00011864,2]
[426535588,1782561032000,-1190.69306236,0.00011864,2]
[426535597,1782561032000,-152.0,0.00011864,2]
[426535584,1782561032000,-460.22,0.00011809,2]
[426535585,1782561032000,-172.3,0.00011858,2]
[426535576,1782561032000,-197.3667452,0.00011673,2]
[426535575,1782561032000,-150.0,0.00011638,2]
[426535574,1782561032000,-150.0,0.00011638,2]
[426535577,1782561032000,-19.14509759,0.00011673,2]
[426535573,1782561032000,-150.0,0.00011638,2]
[426535581,1782561032000,-158.00915736,0.00011764,2]
[426535580,1782561032000,-166.66,0.00011735,2]
[426535582,1782561032000,-877.14,0.00011768,2]
[426535583,1782561032000,-219.49438601,0.00011804,2]
[426535579,1782561032000,-200.0,0.0001173,2]
[426535578,1782561032000,-1254.49,0.00011692,2]
[426535639,1782561033000,-113.23063463,0.00012488,2]
[426535636,1782561033000,-500.0,0.00012488,2]
[426535635,1782561033000,-500.0,0.00012488,2]
[426535631,1782561033000,-343.73,0.00012288,2]
[426535630,1782561033000,-150.0,0.00012285,2]
[426535627,1782561033000,-500.0,0.00012138,2]
[426535625,1782561033000,-150.0,0.00011962,2]
[426535634,1782561033000,-166.66,0.00012461,2]
[426535629,1782561033000,-166.66,0.00012219,2]
[426535633,1782561033000,-934.5,0.00012451,2]
[426535640,1782561033000,-511.99958259,0.00012488,2]
[426535643,1782561033000,-500.0,0.00012488,2]
[426535637,1782561033000,-500.0,0.00012488,2]
[426535641,1782561033000,-225.56524254,0.00012488,2]
[426535642,1782561033000,-274.43475746,0.00012488,2]
[426535644,1782561033000,-523.54809389,0.00012488,2]
[426535645,1782561033000,-500.0,0.00012488,2]
[426535647,1782561033000,-193.38212287,0.00012488,2]
[426535646,1782561033000,-500.0,0.00012488,2]
[426535652,1782561033000,-150.0,0.00012664,2]
[426535650,1782561033000,-150.0,0.00012664,2]
[426535655,1782561033000,-504.2741242,0.00012664,2]
[426535632,1782561033000,-150.0,0.00012334,2]
[426535651,1782561033000,-150.0,0.00012664,2]
[426535638,1782561033000,-392.69109944,0.00012488,2]
[426535628,1782561033000,-934.5,0.00012168,2]
[426535612,1782561033000,-171.23722688,0.00011864,2]
[426535626,1782561033000,-166.66,0.00011977,2]
[426535648,1782561033000,-150.0,0.00012608,2]
[426535599,1782561033000,-152.0,0.00011864,2]
[426535600,1782561033000,-303.99999996,0.00011864,2]
[426535601,1782561033000,-155.67020627,0.00011864,2]
[426535604,1782561033000,-155.67020627,0.00011864,2]
[426535603,1782561033000,-155.67020627,0.00011864,2]
[426535606,1782561033000,-155.67020627,0.00011864,2]
[426535602,1782561033000,-155.67020627,0.00011864,2]
[426535608,1782561033000,-155.67020627,0.00011864,2]
[426535605,1782561033000,-155.67020627,0.00011864,2]
[426535607,1782561033000,-155.67020627,0.00011864,2]
[426535611,1782561033000,-171.23722688,0.00011864,2]
[426535610,1782561033000,-171.23722688,0.00011864,2]
[426535609,1782561033000,-155.67020627,0.00011864,2]
[426535613,1782561033000,-171.23722688,0.00011864,2]
[426535614,1782561033000,-171.23722688,0.00011864,2]
[426535615,1782561033000,-171.23722688,0.00011864,2]
[426535619,1782561033000,-171.23722688,0.00011864,2]
[426535622,1782561033000,-152.0,0.00011864,2]
[426535616,1782561033000,-171.23722688,0.00011864,2]
[426535617,1782561033000,-171.23722688,0.00011864,2]
[426535618,1782561033000,-171.23722688,0.00011864,2]
[426535620,1782561033000,-152.00000002,0.00011864,2]
[426535621,1782561033000,-152.0,0.00011864,2]
[426535623,1782561033000,-500.0,0.00011864,2]
[426535624,1782561033000,-934.5,0.00011885,2]
[426535649,1782561033000,-163.01,0.00012646,2]
[426535654,1782561033000,-163.94400651,0.00012664,2]
[426535699,1782561033000,-500.0,0.00012937,2]
[426535685,1782561033000,-500.0,0.00012937,2]
[426535688,1782561033000,-500.0,0.00012937,2]
[426535689,1782561033000,-500.0,0.00012937,2]
[426535687,1782561033000,-500.0,0.00012937,2]
[426535684,1782561033000,-500.0,0.00012937,2]
[426535691,1782561033000,-500.0,0.00012937,2]
[426535693,1782561033000,-500.0,0.00012937,2]
[426535692,1782561033000,-500.0,0.00012937,2]
[426535703,1782561033000,-500.0,0.00012937,2]
[426535696,1782561033000,-500.0,0.00012937,2]
[426535697,1782561033000,-500.0,0.00012937,2]
[426535682,1782561033000,-500.0,0.00012937,2]
[426535700,1782561033000,-500.0,0.00012937,2]
[426535695,1782561033000,-500.0,0.00012937,2]
[426535701,1782561033000,-500.0,0.00012937,2]
[426535694,1782561033000,-500.0,0.00012937,2]
[426535702,1782561033000,-150.0,0.00012937,2]
[426535653,1782561033000,-150.0,0.00012664,2]
[426535705,1782561033000,-500.0,0.00012937,2]
[426535704,1782561033000,-500.0,0.00012937,2]
[426535706,1782561033000,-500.0,0.00012937,2]
[426535707,1782561033000,-500.0,0.00012937,2]
[426535709,1782561033000,-33336.8515,0.00012938,2]
[426535708,1782561033000,-2000.0,0.00012938,2]
[426535698,1782561033000,-500.0,0.00012937,2]
[426535690,1782561033000,-500.0,0.00012937,2]
[426535683,1782561033000,-500.0,0.00012937,2]
[426535681,1782561033000,-500.0,0.00012937,2]
[426535657,1782561033000,-150.0,0.00012762,2]
[426535656,1782561033000,-166.66,0.00012703,2]
[426535659,1782561033000,-200.32000703,0.00012762,2]
[426535660,1782561033000,-500.0,0.00012762,2]
[426535658,1782561033000,-150.0,0.00012762,2]
[426535662,1782561033000,-209.57311196,0.00012762,2]
[426535661,1782561033000,-290.42688804,0.00012762,2]
[426535686,1782561033000,-500.0,0.00012937,2]
[426535666,1782561033000,-501.83357114,0.00012762,2]
[426535665,1782561033000,-500.0,0.00012762,2]
[426535664,1782561033000,-500.0,0.00012762,2]
[426535667,1782561033000,-2500.0,0.00012838,2]
[426535668,1782561033000,-214.68111384,0.00012838,2]
[426535663,1782561033000,-500.0,0.00012762,2]
[426535672,1782561033000,-500.0,0.00012937,2]
[426535671,1782561033000,-500.0,0.00012937,2]
[426535679,1782561033000,-500.0,0.00012937,2]
[426535677,1782561033000,-500.0,0.00012937,2]
[426535670,1782561033000,-150.0,0.00012932,2]
[426535675,1782561033000,-500.0,0.00012937,2]
[426535680,1782561033000,-493.38537382,0.00012937,2]
[426535669,1782561033000,-4291.01035249,0.00012838,2]
[426535678,1782561033000,-500.0,0.00012937,2]
[426535673,1782561033000,-500.0,0.00012937,2]
[426535674,1782561033000,-500.0,0.00012937,2]